fUSD/lending_fUSD_20250204
["ID","MTS","AMOUNT","RATE_DAILY","PERIOD"]
[351617644,1738666267196,-500.0,9.583e-05,2]
[351617645,1738666267208,-1103.89,9.583e-05,2]
[351617646,1738666267219,-500.0,9.583e-05,2]
[351617647,1738666267229,-1286.49,9.583e-05,2]
[351617648,1738666267239,-660.98,9.583e-05,2]
[351617649,1738666267250,-923.7,9.583e-05,2]
[351617650,1738666267261,-500.0,9.583e-05,2]
[351617651,1738666267271,-905.0,9.583e-05,2]
[351617652,1738666267281,-559.28,9.583e-05,2]
[351617653,1738666267291,-1310.3,9.583e-05,2]
[351617654,1738666267301,-500.0,9.583e-05,2]
[351617655,1738666267312,-636.31,9.583e-05,2]
[351617656,1738666267322,-500.0,9.583e-05,2]
[351617657,1738666267332,-500.0,9.583e-05,2]
[351617658,1738666267343,-542.77,9.583e-05,2]
[351617659,1738666267353,-520.0,9.583e-05,2]
[351617660,1738666267363,-1706.28,9.583e-05,2]
[351617661,1738666267373,-1060.8,9.583e-05,2]
[351617662,1738666267383,-1066.92,9.583e-05,2]
[351617663,1738666267393,-615.43789665,9.583e-05,2]
[351617664,1738666267404,-1248.82,9.583e-05,2]
[351617665,1738666267414,-500.0,9.583e-05,2]
[351617666,1738666267424,-716.2,9.583e-05,2]
[351617667,1738666267436,-500.0,9.583e-05,2]
[351617668,1738666267446,-1020.63,9.583e-05,2]
[351617669,1738666267456,-778.52,9.583e-05,2]
[351617670,1738666267466,-1782.36,9.583e-05,2]
[351617671,1738666267475,-500.0,9.583e-05,2]
[351617672,1738666267491,-919.14,9.583e-05,2]
[351617673,1738666267503,-881.44,9.583e-05,2]
[351617674,1738666267513,-743.73,9.583e-05,2]
[351617675,1738666267523,-1474.07,9.583e-05,2]
[351617676,1738666267535,-500.0,9.583e-05,2]
[351617677,1738666267545,-500.0,9.584e-05,2]
[351617678,1738666267557,-500.0,9.584e-05,2]
[351617679,1738666267569,-500.0,9.584e-05,2]
[351617680,1738666267580,-500.0,9.584e-05,2]
[351617681,1738666267591,-500.0,9.584e-05,2]
[351617682,1738666267601,-500.0,9.584e-05,2]
[351617683,1738666267613,-573.49,9.584e-05,2]
[351617684,1738666267623,-826.86,9.584e-05,2]
[351617685,1738666267633,-500.0,9.584e-05,2]
[351617686,1738666267644,-500.0,9.584e-05,2]
[351617687,1738666267654,-500.0,9.584e-05,2]
[351617688,1738666267663,-500.0,9.584e-05,2]
[351617689,1738666267673,-500.0,9.584e-05,2]
[351617690,1738666267685,-500.0,9.584e-05,2]
[351617691,1738666267695,-500.0,9.584e-05,2]
[351617692,1738666267705,-500.0,9.584e-05,2]
[351617693,1738666267714,-500.0,9.584e-05,2]
[351617694,1738666267724,-500.0,9.584e-05,2]
[351617695,1738666267734,-582.91,9.584e-05,2]
[351617696,1738666267743,-906.73,9.584e-05,2]
[351617697,1738666267753,-500.0,9.584e-05,2]
[351617698,1738666267763,-500.0,9.584e-05,2]
[351617699,1738666267772,-566.69,9.584e-05,2]
[351617700,1738666267781,-500.0,9.584e-05,2]
[351617701,1738666267790,-520.23,9.584e-05,2]
[351617702,1738666267799,-627.36,9.584e-05,2]
[351617703,1738666267808,-500.0,9.584e-05,2]
[351617704,1738666267817,-500.0,9.584e-05,2]
[351617705,1738666267826,-521.41,9.584e-05,2]
[351617706,1738666267835,-500.0,9.584e-05,2]
[351617707,1738666267844,-536.62,9.584e-05,2]
[351617708,1738666267854,-500.0,9.584e-05,2]
[351617709,1738666267863,-500.0,9.584e-05,2]
[351617710,1738666267871,-500.0,9.584e-05,2]
[351617711,1738666267881,-593.34,9.584e-05,2]
[351617712,1738666267890,-500.0,9.584e-05,2]
[351617713,1738666267899,-500.0,9.584e-05,2]
[351617714,1738666267907,-763.48,9.584e-05,2]
[351617715,1738666267917,-500.0,9.584e-05,2]
[351617716,1738666267927,-500.0,9.584e-05,2]
[351617717,1738666267936,-762.35,9.584e-05,2]
[351617718,1738666267945,-500.0,9.584e-05,2]
[351617719,1738666267954,-500.0,9.584e-05,2]
[351617720,1738666267963,-532.38,9.584e-05,2]
[351617721,1738666267972,-500.0,9.584e-05,2]
[351617722,1738666267981,-684.17,9.584e-05,2]
[351617723,1738666267990,-510.91,9.584e-05,2]
[351617724,1738666267999,-665.46,9.584e-05,2]
[351617725,1738666268008,-516.45,9.584e-05,2]
[351617726,1738666268018,-500.0,9.584e-05,2]
[351617727,1738666268027,-529.84,9.584e-05,2]
[351617728,1738666268036,-602.27,9.584e-05,2]
[351617729,1738666268045,-500.0,9.584e-05,2]
[351617730,1738666268055,-886.01,9.584e-05,2]
[351617731,1738666268065,-852.86,9.584e-05,2]
[351617732,1738666268075,-629.17,9.584e-05,2]
[351617733,1738666268084,-500.0,9.584e-05,2]
[351617734,1738666268093,-500.0,9.584e-05,2]
[351617735,1738666268106,-500.0,9.584e-05,2]
[351617736,1738666268116,-1183.56,9.584e-05,2]
[351617737,1738666268126,-500.0,9.584e-05,2]
[351617738,1738666268136,-648.55,9.584e-05,2]
[351617739,1738666268146,-719.44,9.584e-05,2]
[351617740,1738666268155,-500.0,9.584e-05,2]
[351617741,1738666268166,-500.0,9.584e-05,2]
[351617742,1738666268181,-987.7,9.584e-05,2]
[351617743,1738666268190,-738.7,9.584e-05,2]
[351617744,1738666268199,-730.04,9.584e-05,2]
[351617745,1738666268209,-1012.94,9.584e-05,2]
[351617746,1738666268219,-500.0,9.584e-05,2]
[351617747,1738666268228,-500.0,9.584e-05,2]
[351617748,1738666268238,-500.0,9.584e-05,2]
[351617749,1738666268247,-1018.61,9.584e-05,2]
[351617750,1738666268255,-631.63,9.584e-05,2]
[351617751,1738666268265,-803.76,9.584e-05,2]
[351617752,1738666268274,-648.51841757,9.584e-05,2]
[351617753,1738666268284,-693.01,9.584e-05,2]
[351617754,1738666268293,-673.09,9.584e-05,2]
[351617755,1738666268302,-500.0,9.584e-05,2]
[351617756,1738666268312,-844.23,9.584e-05,2]
[351617757,1738666268322,-953.01,9.584e-05,2]
[351617758,1738666268331,-500.0,9.584e-05,2]
[351617759,1738666268341,-533.38,9.584e-05,2]
[351617760,1738666268350,-500.0,9.584e-05,2]
[351617761,1738666268360,-500.0,9.584e-05,2]
[351617762,1738666268369,-659.28,9.584e-05,2]
[351617763,1738666268379,-578.55,9.584e-05,2]
[351617764,1738666268388,-511.51,9.584e-05,2]
[351617765,1738666268398,-500.0,9.584e-05,2]
[351617766,1738666268407,-611.5,9.584e-05,2]
[351617767,1738666268416,-500.0,9.584e-05,2]
[351617768,1738666268427,-713.86,9.584e-05,2]
[351617769,1738666268441,-611.93,9.584e-05,2]
[351617770,1738666268451,-1116.38,9.584e-05,2]
[351617771,1738666268460,-639.02,9.584e-05,2]
[351617772,1738666268469,-797.65,9.584e-05,2]
[351617773,1738666268479,-819.52,9.584e-05,2]
[351617774,1738666268489,-500.0,9.584e-05,2]
[351617775,1738666268499,-500.0,9.584e-05,2]
[351617776,1738666268509,-683.87,9.584e-05,2]
[351617777,1738666268519,-620.55,9.584e-05,2]
[351617778,1738666268529,-500.0,9.584e-05,2]
[351617779,1738666268538,-503.52,9.584e-05,2]
[351617780,1738666268548,-500.0,9.584e-05,2]
[351617781,1738666268558,-500.0,9.584e-05,2]
[351617782,1738666268567,-893.34,9.584e-05,2]
[351617783,1738666268577,-500.0,9.584e-05,2]
[351617784,1738666268587,-500.0,9.584e-05,2]
[351617785,1738666268596,-500.0,9.584e-05,2]
[351617786,1738666268605,-176.23693379,9.584e-05,2]
[351617787,1738666268615,-735.16,9.584e-05,2]
[351617788,1738666268624,-500.0,9.584e-05,2]
[351617789,1738666268633,-500.0,9.584e-05,2]
[351617790,1738666268643,-646.5,9.584e-05,2]
[351617791,1738666268653,-640.55244354,9.584e-05,2]
[351617792,1738666268663,-997.44,9.584e-05,2]
[351617793,1738666268672,-500.0,9.584e-05,2]
[351617794,1738666268683,-500.0,9.584e-05,2]
[351617795,1738666268692,-500.0,9.584e-05,2]
[351617796,1738666268702,-500.0,9.584e-05,2]
[351617797,1738666268711,-500.0,9.584e-05,2]
[351617798,1738666268721,-632.22,9.584e-05,2]
[351617799,1738666268730,-616.82,9.584e-05,2]
[351617800,1738666268740,-500.0,9.584e-05,2]
[351617801,1738666268749,-500.0,9.584e-05,2]
[351617802,1738666268759,-500.0,9.584e-05,2]
[351617803,1738666268768,-648.81,9.584e-05,2]
[351617804,1738666268778,-500.0,9.584e-05,2]
[351617805,1738666268789,-500.0,9.584e-05,2]
[351617806,1738666268799,-915.19,9.584e-05,2]
[351617807,1738666268809,-2371.2,9.584e-05,2]
[351617808,1738666268819,-838.62,9.584e-05,2]
[351617809,1738666268828,-500.0,9.584e-05,2]
[351617810,1738666268839,-1587.07,9.584e-05,2]
[351617811,1738666268848,-500.0,9.584e-05,2]
[351617812,1738666268858,-1816.92,9.584e-05,2]
[351617813,1738666268868,-500.0,9.584e-05,2]
[351617814,1738666268877,-500.0,9.584e-05,2]
[351617815,1738666268887,-715.31,9.584e-05,2]
[351617816,1738666268897,-1488.57,9.584e-05,2]
[351617817,1738666268906,-500.0,9.584e-05,2]
[351617818,1738666268916,-2550.15,9.584e-05,2]
[351617819,1738666268925,-500.0,9.584e-05,2]
[351617820,1738666268936,-530.01,9.584e-05,2]
[351617821,1738666268945,-500.0,9.584e-05,2]
[351617822,1738666268955,-500.0,9.584e-05,2]
[351617823,1738666268964,-500.0,9.584e-05,2]
[351617824,1738666268973,-1658.68,9.584e-05,2]
[351617825,1738666268983,-1030.96,9.584e-05,2]
[351617826,1738666268992,-176.20058053,9.584e-05,2]
[351617827,1738666269003,-578.27,9.584e-05,2]
[351617828,1738666269135,-212.02100323,9.584e-05,2]
[351617829,1738666269147,-517.33,9.584e-05,2]
[351617830,1738666269157,-500.0,9.584e-05,2]
[351617831,1738666269167,-1386.93,9.584e-05,2]
[351617832,1738666269178,-975.74,9.584e-05,2]
[351617833,1738666269196,-740.72,9.584e-05,2]
[351617834,1738666269208,-500.0,9.584e-05,2]
[351617835,1738666269218,-1222.2,9.584e-05,2]
[351617836,1738666269228,-500.0,9.584e-05,2]
[351617837,1738666269238,-500.0,9.584e-05,2]
[351617838,1738666269248,-1336.79,9.584e-05,2]
[351617839,1738666269259,-500.0,9.584e-05,2]
[351617840,1738666269269,-526.32,9.584e-05,2]
[351617841,1738666269280,-516.01,9.584e-05,2]
[351617842,1738666269289,-1365.03,9.584e-05,2]
[351617843,1738666269299,-1087.43,9.584e-05,2]
[351617844,1738666269309,-500.0,9.584e-05,2]
[351617845,1738666269318,-1560.86,9.584e-05,2]
[351617846,1738666269328,-635.5,9.584e-05,2]
[351617847,1738666269338,-500.0,9.584e-05,2]
[351617848,1738666269347,-1471.54,9.584e-05,2]
[351617849,1738666269357,-500.0,9.584e-05,2]
[351617850,1738666269367,-1627.62,9.584e-05,2]
[351617851,1738666269376,-589.4,9.584e-05,2]
[351617852,1738666269386,-500.0,9.584e-05,2]
[351617853,1738666269395,-500.0,9.584e-05,2]
[351617854,1738666269404,-500.0,9.584e-05,2]
[351617855,1738666269414,-500.0,9.584e-05,2]
[351617856,1738666269424,-500.0,9.584e-05,2]
[351617857,1738666269436,-1341.25,9.584e-05,2]
[351617858,1738666269445,-500.0,9.584e-05,2]
[351617859,1738666269455,-611.74,9.584e-05,2]
[351617860,1738666269464,-1635.21,9.584e-05,2]
[351617861,1738666269475,-1060.11,9.584e-05,2]
[351617862,1738666269484,-500.0,9.584e-05,2]
[351617863,1738666269494,-761.58,9.584e-05,2]
[351617864,1738666269504,-594.44549743,9.584e-05,2]
[351617865,1738666269525,-563.5,9.584e-05,2]
[351617866,1738666269535,-500.0,9.584e-05,2]
[351617867,1738666269549,-500.0,9.584e-05,2]
[351617868,1738666269563,-500.0,9.584e-05,2]
[351617869,1738666269577,-500.0,9.584e-05,2]
[351617870,1738666269587,-665.51,9.584e-05,2]
[351617871,1738666269597,-547.43,9.584e-05,2]
[351617872,1738666269607,-500.0,9.584e-05,2]
[351617873,1738666269617,-500.0,9.586e-05,2]
[351617874,1738666269628,-500.0,9.587e-05,2]
[351617875,1738666269638,-500.0,9.587e-05,2]
[351617876,1738666269648,-500.0,9.587e-05,2]
[351617877,1738666269658,-1900.0,9.6e-05,3]
[351617878,1738666269670,-431.43955898,9.625e-05,2]
[351617879,1738666269682,-205.0,9.69e-05,2]
[351617880,1738666269693,-2400.0,9.7e-05,3]
[351617881,1738666269703,-762.35,9.72e-05,2]
[351617882,1738666269713,-778.66,9.72e-05,2]
[351617883,1738666269724,-501.61,9.72e-05,2]
[351617884,1738666269733,-500.0,9.72e-05,2]
[351617885,1738666269743,-500.0,9.72e-05,2]
[351617886,1738666269754,-783.26,9.72e-05,2]
[351617887,1738666269763,-777.35,9.72e-05,2]
[351617888,1738666269773,-776.52,9.72e-05,2]
[351617889,1738666269784,-782.02,9.72e-05,2]
[351617890,1738666269794,-500.0,9.72e-05,2]
[351617891,1738666269808,-539.22,9.72e-05,2]
[351617892,1738666269828,-532.69,9.72e-05,2]
[351617893,1738666269848,-500.0,9.72e-05,2]
[351617894,1738666269862,-710.15,9.72e-05,2]
[351617895,1738666269872,-607.89,9.72e-05,2]
[351617896,1738666269882,-202.21610097,9.72e-05,2]
[351617897,1738666269891,-595.82,9.72e-05,2]
[351617898,1738666269901,-500.0,9.72e-05,2]
[351617899,1738666269911,-518.82,9.72e-05,2]
[351617900,1738666269920,-500.0,9.72e-05,2]
[351617901,1738666269931,-500.0,9.72e-05,2]
[351617902,1738666269940,-744.95,9.72e-05,2]
[351617903,1738666269950,-500.0,9.72e-05,2]
[351617904,1738666269959,-856.37136,9.72e-05,2]
[351617905,1738666269968,-500.0,9.72e-05,2]
[351617906,1738666269978,-500.0,9.72e-05,2]
[351617907,1738666269988,-691.63,9.72e-05,2]
[351617908,1738666269997,-491.18,9.72e-05,2]
[351617909,1738666270006,-500.0,9.72e-05,2]
[351617910,1738666270018,-559.9,9.72e-05,2]
[351617911,1738666270027,-500.0,9.72e-05,2]
[351617912,1738666270037,-875.590645,9.72e-05,2]
[351617913,1738666270047,-592.87592365,9.72e-05,2]
[351617914,1738666270056,-516.13,9.72e-05,2]
[351617915,1738666270066,-500.0,9.72e-05,2]
[351617916,1738666270075,-663.56,9.72e-05,2]
[351617917,1738666270085,-541.64,9.72e-05,2]
[351617918,1738666270095,-500.0,9.72e-05,2]
[351617919,1738666270108,-500.0,9.72e-05,2]
[351617920,1738666270119,-859.42,9.72e-05,2]
[351617921,1738666270129,-549.17,9.72e-05,2]
[351617922,1738666270138,-500.0,9.72e-05,2]
[351617923,1738666270149,-753.75,9.72e-05,2]
[351617924,1738666270158,-500.0,9.72e-05,2]
[351617925,1738666270168,-858.01,9.72e-05,2]
[351617926,1738666270178,-925.63,9.72e-05,2]
[351617927,1738666270190,-883.72,9.72e-05,2]
[351617928,1738666270199,-500.0,9.72e-05,2]
[351617929,1738666270208,-500.0,9.72e-05,2]
[351617930,1738666270218,-500.0,9.72e-05,2]
[351617931,1738666270228,-500.0,9.72e-05,2]
[351617932,1738666270238,-582.15,9.72e-05,2]
[351617933,1738666270248,-924.81,9.72e-05,2]
[351617934,1738666270257,-500.0,9.72e-05,2]
[351617935,1738666270267,-788.86,9.72e-05,2]
[351617936,1738666270277,-551.71,9.72e-05,2]
[351617937,1738666270286,-500.0,9.72e-05,2]
[351617938,1738666270296,-686.39,9.72e-05,2]
[351617939,1738666270305,-500.0,9.72e-05,2]
[351617940,1738666270315,-500.0,9.72e-05,2]
[351617941,1738666270324,-500.0,9.72e-05,2]
[351617942,1738666270334,-500.0,9.72e-05,2]
[351617943,1738666270343,-500.0,9.72e-05,2]
[351617944,1738666270353,-633.47,9.72e-05,2]
[351617945,1738666270363,-500.0,9.72e-05,2]
[351617946,1738666270372,-500.0,9.72e-05,2]
[351617947,1738666270382,-1036.97,9.72e-05,2]
[351617948,1738666270392,-500.0,9.72e-05,2]
[351617949,1738666270403,-811.88,9.72e-05,2]
[351617950,1738666270413,-1154.75,9.72e-05,2]
[351617951,1738666270423,-511.43,9.72e-05,2]
[351617952,1738666270435,-500.0,9.72e-05,2]
[351617953,1738666270445,-765.14,9.72e-05,2]
[351617954,1738666270455,-1291.54,9.72e-05,2]
[351617955,1738666270467,-1554.52,9.72e-05,2]
[351617956,1738666270476,-500.0,9.72e-05,2]
[351617957,1738666270487,-1036.67,9.72e-05,2]
[351617958,1738666270497,-500.0,9.72e-05,2]
[351617959,1738666270507,-500.0,9.72e-05,2]
[351617960,1738666270517,-1160.07,9.72e-05,2]
[351617961,1738666270527,-877.39,9.72e-05,2]
[351617962,1738666270537,-1140.04,9.72e-05,2]
[351617963,1738666270547,-1693.45,9.72e-05,2]
[351617964,1738666270556,-201.33586219,9.72e-05,2]
[351617965,1738666270566,-511.02,9.72e-05,2]
[351617966,1738666270576,-613.99881467,9.72e-05,2]
[351617967,1738666270586,-500.0,9.72e-05,2]
[351617968,1738666270596,-635.7,9.72e-05,2]
[351617969,1738666270606,-890.36,9.72e-05,2]
[351617970,1738666270616,-918.28,9.72e-05,2]
[351617971,1738666270626,-1021.01,9.72e-05,2]
[351617972,1738666270635,-500.0,9.72e-05,2]
[351617973,1738666270645,-500.0,9.72e-05,2]
[351617974,1738666270655,-887.28,9.72e-05,2]
[351617975,1738666270665,-883.46,9.72e-05,2]
[351617976,1738666270674,-694.48,9.72e-05,2]
[351617977,1738666270684,-538.4,9.72e-05,2]
[351617978,1738666270694,-944.67,9.72e-05,2]
[351617979,1738666270703,-500.0,9.72e-05,2]
[351617980,1738666270713,-1539.06,9.72e-05,2]
[351617981,1738666270723,-1293.87,9.72e-05,2]
[351617982,1738666270734,-1026.96,9.72e-05,2]
[351617983,1738666270744,-500.0,9.72e-05,2]
[351617984,1738666270754,-1448.18,9.72e-05,2]
[351617985,1738666270763,-1933.36,9.72e-05,2]
[351617986,1738666270771,-437.40805801,9.72e-05,2]
[351617987,1738666270778,-1108.43,9.72e-05,2]
[351617988,1738666270786,-500.0,9.72e-05,2]
[351617989,1738666270794,-1405.97,9.72e-05,2]
[351617990,1738666270802,-1014.38,9.72e-05,2]
[351617991,1738666270810,-464.67883941,9.72e-05,2]
[351617992,1738666270818,-1538.12,9.72e-05,2]
[351617993,1738666270827,-763.32,9.72e-05,2]
[351617994,1738666270836,-2844.58,9.72e-05,2]
[351617995,1738666270845,-762.83,9.72e-05,2]
[351617996,1738666270855,-681.6,9.72e-05,2]
[351617997,1738666270864,-753.58,9.72e-05,2]
[351617998,1738666270873,-1449.41,9.72e-05,2]
[351617999,1738666270882,-1972.38,9.72e-05,2]
[351618000,1738666270891,-2349.51,9.72e-05,2]
[351618001,1738666270901,-2434.55,9.72e-05,2]
[351618002,1738666270911,-1491.33,9.72e-05,2]
[351618003,1738666270920,-537.48,9.72e-05,2]
[351618004,1738666270930,-646.53,9.72e-05,2]
[351618005,1738666270940,-2183.22,9.72e-05,2]
[351618006,1738666270949,-2533.64,9.72e-05,2]
[351618007,1738666270960,-1141.92,9.72e-05,2]
[351618008,1738666270970,-931.86,9.72e-05,2]
[351618009,1738666270980,-507.7,9.72e-05,2]
[351618010,1738666270991,-500.0,9.72e-05,2]
[351618011,1738666271001,-2142.56,9.72e-05,2]
[351618012,1738666271011,-819.59,9.72e-05,2]
[351618013,1738666271021,-963.79,9.72e-05,2]
[351618014,1738666271031,-807.06,9.72e-05,2]
[351618015,1738666271040,-1496.82,9.72e-05,2]
[351618016,1738666271050,-1012.66,9.72e-05,2]
[351618017,1738666271059,-500.0,9.72e-05,2]
[351618018,1738666271069,-1580.21,9.72e-05,2]
[351618019,1738666271078,-500.0,9.72e-05,2]
[351618020,1738666271087,-1093.78,9.72e-05,2]
[351618021,1738666271101,-726.52,9.72e-05,2]
[351618022,1738666271111,-568.23,9.72e-05,2]
[351618023,1738666271120,-265.74702802,9.72e-05,2]
[351618024,1738666271130,-3113.89,9.72e-05,2]
[351618025,1738666271142,-2079.82,9.72e-05,2]
[351618026,1738666271151,-657.88,9.72e-05,2]
[351618027,1738666271160,-559.25,9.72e-05,2]
[351618028,1738666271169,-545.71,9.72e-05,2]
[351618029,1738666271180,-1145.74,9.72e-05,2]
[351618030,1738666271191,-1366.26,9.72e-05,2]
[351618031,1738666271200,-1661.25,9.72e-05,2]
[351618032,1738666271208,-500.0,9.72e-05,2]
[351618033,1738666271216,-500.0,9.72e-05,2]
[351618034,1738666271225,-500.0,9.72e-05,2]
[351618035,1738666271233,-500.0,9.72e-05,2]
[351618036,1738666271240,-1267.42,9.72e-05,2]
[351618037,1738666271248,-1596.56,9.72e-05,2]
[351618038,1738666271256,-1248.59,9.72e-05,2]
[351618039,1738666271265,-1570.67,9.72e-05,2]
[351618040,1738666271274,-182.49205117,9.72e-05,2]
[351618041,1738666271284,-500.0,9.72e-05,2]
[351618042,1738666271295,-1319.75,9.72e-05,2]
[351618043,1738666271304,-1179.66,9.72e-05,2]
[351618044,1738666271314,-2198.65,9.72e-05,2]
[351618045,1738666271324,-992.99,9.72e-05,2]
[351618046,1738666271334,-1625.3,9.72e-05,2]
[351618047,1738666271344,-1582.81,9.72e-05,2]
[351618048,1738666271353,-1213.52,9.72e-05,2]
[351618049,1738666271362,-500.0,9.72e-05,2]
[351618050,1738666271371,-500.0,9.72e-05,2]
[351618051,1738666271381,-1103.89,9.72e-05,2]
[351618052,1738666271391,-500.0,9.72e-05,2]
[351618053,1738666271401,-1286.49,9.72e-05,2]
[351618054,1738666271410,-660.98,9.72e-05,2]
[351618055,1738666271419,-923.7,9.72e-05,2]
[351618056,1738666271430,-500.0,9.72e-05,2]
[351618057,1738666271729,-905.0,9.72e-05,2]
[351618058,1738666271742,-559.28,9.72e-05,2]
[351618059,1738666271752,-1310.3,9.72e-05,2]
[351618060,1738666271761,-500.0,9.72e-05,2]
[351618061,1738666271771,-636.31,9.72e-05,2]
[351618062,1738666271780,-500.0,9.72e-05,2]
[351618063,1738666271790,-500.0,9.72e-05,2]
[351618064,1738666271799,-542.77,9.72e-05,2]
[351618065,1738666271809,-520.0,9.72e-05,2]
[351618066,1738666271818,-1706.28,9.72e-05,2]
[351618067,1738666271827,-1060.8,9.72e-05,2]
[351618068,1738666271837,-1066.92,9.72e-05,2]
[351618069,1738666271847,-1248.82,9.72e-05,2]
[351618070,1738666271856,-716.2,9.72e-05,2]
[351618071,1738666271865,-500.0,9.72e-05,2]
[351618072,1738666271875,-500.0,9.72e-05,2]
[351618073,1738666271884,-1020.63,9.72e-05,2]
[351618074,1738666271893,-778.52,9.72e-05,2]
[351618075,1738666271902,-1782.36,9.72e-05,2]
[351618076,1738666271912,-500.0,9.72e-05,2]
[351618077,1738666271922,-919.14,9.72e-05,2]
[351618078,1738666271934,-881.44,9.72e-05,2]
[351618079,1738666271943,-743.73,9.72e-05,2]
[351618080,1738666271954,-1474.07,9.72e-05,2]
[351618081,1738666271963,-500.0,9.72e-05,2]
[351618082,1738666271973,-500.0,9.721e-05,2]
[351618083,1738666271982,-500.0,9.721e-05,2]
[351618084,1738666271993,-500.0,9.721e-05,2]
[351618085,1738666272002,-500.0,9.721e-05,2]
[351618086,1738666272011,-500.0,9.721e-05,2]
[351618087,1738666272020,-500.0,9.721e-05,2]
[351618088,1738666272030,-573.49,9.721e-05,2]
[351618089,1738666272039,-826.86,9.721e-05,2]
[351618090,1738666272049,-500.0,9.721e-05,2]
[351618091,1738666272058,-500.0,9.721e-05,2]
[351618092,1738666272067,-500.0,9.721e-05,2]
[351618093,1738666272077,-500.0,9.721e-05,2]
[351618094,1738666272086,-500.0,9.721e-05,2]
[351618095,1738666272096,-500.0,9.721e-05,2]
[351618096,1738666272107,-500.0,9.721e-05,2]
[351618097,1738666272117,-500.0,9.721e-05,2]
[351618098,1738666272127,-500.0,9.721e-05,2]
[351618099,1738666272136,-582.91,9.721e-05,2]
[351618100,1738666272147,-906.73,9.721e-05,2]
[351618101,1738666272157,-500.0,9.721e-05,2]
[351618102,1738666272166,-500.0,9.721e-05,2]
[351618103,1738666272176,-566.69,9.721e-05,2]
[351618104,1738666272192,-500.0,9.721e-05,2]
[351618105,1738666272202,-520.23,9.721e-05,2]
[351618106,1738666272211,-627.36,9.721e-05,2]
[351618107,1738666272220,-500.0,9.721e-05,2]
[351618108,1738666272230,-500.0,9.721e-05,2]
[351618109,1738666272240,-521.41,9.721e-05,2]
[351618110,1738666272249,-500.0,9.721e-05,2]
[351618111,1738666272259,-536.62,9.721e-05,2]
[351618112,1738666272269,-500.0,9.721e-05,2]
[351618113,1738666272279,-500.0,9.721e-05,2]
[351618114,1738666272289,-500.0,9.721e-05,2]
[351618115,1738666272299,-593.34,9.721e-05,2]
[351618116,1738666272308,-500.0,9.721e-05,2]
[351618117,1738666272317,-500.0,9.721e-05,2]
[351618118,1738666272326,-763.48,9.721e-05,2]
[351618119,1738666272335,-500.0,9.721e-05,2]
[351618120,1738666272344,-500.0,9.721e-05,2]
[351618121,1738666272354,-762.35,9.721e-05,2]
[351618122,1738666272363,-500.0,9.721e-05,2]
[351618123,1738666272372,-500.0,9.721e-05,2]
[351618124,1738666272381,-532.38,9.721e-05,2]
[351618125,1738666272391,-500.0,9.721e-05,2]
[351618126,1738666272400,-684.17,9.721e-05,2]
[351618127,1738666272409,-510.91,9.721e-05,2]
[351618128,1738666272419,-665.46,9.721e-05,2]
[351618129,1738666272428,-516.45,9.721e-05,2]
[351618130,1738666272441,-500.0,9.721e-05,2]
[351618131,1738666272450,-602.27,9.721e-05,2]
[351618132,1738666272460,-500.0,9.721e-05,2]
[351618133,1738666272469,-886.01,9.721e-05,2]
[351618134,1738666272479,-529.84,9.721e-05,2]
[351618135,1738666272488,-852.86,9.721e-05,2]
[351618136,1738666272497,-629.17,9.721e-05,2]
[351618137,1738666272506,-500.0,9.721e-05,2]
[351618138,1738666272516,-500.0,9.721e-05,2]
[351618139,1738666272524,-500.0,9.721e-05,2]
[351618140,1738666272534,-1183.56,9.721e-05,2]
[351618141,1738666272544,-500.0,9.721e-05,2]
[351618142,1738666272554,-648.55,9.721e-05,2]
[351618143,1738666272563,-719.44,9.721e-05,2]